fUST/lending_fUST_20250329
["ID","MTS","AMOUNT","RATE_DAILY","PERIOD"]
[356814004,1743240548910,-2621.19076758,0.00020199,2]
[356814005,1743240548933,-2621.19076758,0.00020199,2]
[356814006,1743240548956,-2621.19076758,0.00020199,2]
[356814007,1743240548981,-2621.19076758,0.00020199,2]
[356814008,1743240549006,-2621.19076758,0.00020199,2]
[356814009,1743240549029,-2621.19076758,0.00020199,2]
[356814010,1743240549053,-2621.19076758,0.00020199,2]
[356814011,1743240549078,-2621.19076758,0.00020199,2]
[356814012,1743240549103,-2621.19076758,0.00020199,2]
[356814013,1743240549126,-2621.19076758,0.00020199,2]
[356814014,1743240549150,-2621.19076758,0.00020199,2]
[356814015,1743240549174,-2621.19076758,0.00020199,2]
[356814016,1743240549198,-2621.19076758,0.00020199,2]
[356814017,1743240549222,-2621.19076758,0.00020199,2]
[356814018,1743240549246,-2621.19076758,0.00020199,2]
[356814019,1743240549272,-2621.19076758,0.00020199,2]
[356814020,1743240549295,-2621.19076758,0.00020199,2]
[356814021,1743240549319,-2621.19076758,0.00020199,2]
[356814022,1743240549340,-23264.0,0.000202,2]
[356814023,1743240549361,-2668.29721376,0.00020473,2]
[356814024,1743240549383,-162.594042,0.0002049,2]
[356814025,1743240549404,-180.010983,0.00020548,2]
[356814026,1743240549428,-2775.24753922,0.0002063,2]
[356814027,1743240549450,-162.594042,0.00020651,2]
[356814028,1743240549471,-10000.0,0.0002073,2]
[356814029,1743240549492,-197.3530179,0.0002073,2]
[356814030,1743240549514,-162.594042,0.00020812,2]
[356814031,1743240549534,-207.41720197,0.00020851,2]
[356814032,1743240549555,-1103.16256672,0.0002095,2]
[356814033,1743240549576,-180.63885892,0.0002095,2]
[356814034,1743240549598,-500.0,0.0002095,2]
[356814035,1743240549618,-366.87524213,0.0002095,2]
[356814036,1743240549639,-500.0,0.0002095,2]
[356814037,1743240549660,-500.0,0.0002095,2]
[356814038,1743240549681,-3868.59448427,0.00020952,3]
[356814039,1743240549703,-4011.7312472,0.00020952,2]
[356814040,1743240549725,-162.594042,0.00020974,2]
[356814041,1743240549746,-207.41720197,0.00021185,2]
[356814042,1743240549767,-506.83361592,0.00021409,2]
[356814043,1743240549788,-201.1489117,0.00021457,2]
[356814044,1743240550025,-16659.65550859,0.00021512,3]
[356814045,1743240550064,-835.30152125,0.00021512,3]
[356814046,1743240550086,-160.0,0.00021512,3]
[356814047,1743240550107,-45470.8457118,0.00021512,2]
[356814048,1743240550128,-207.41720197,0.00021518,2]
[356814049,1743240550150,-2775.24753916,0.00021582,2]
[356814050,1743240550171,-1358.251996,0.00021618,2]
[356814051,1743240550191,-196.068094,0.00021708,2]
[356814052,1743240550212,-506.83361589,0.00021748,2]
[356814053,1743240550233,-500.0087006,0.0002195,2]
[356814054,1743240550253,-500.0,0.0002195,2]
[356814055,1743240550273,-501.64342316,0.0002195,2]
[356814056,1743240550294,-461.80402664,0.0002195,2]
[356814057,1743240550315,-500.0,0.0002195,2]
[356814058,1743240550336,-500.0,0.0002195,2]
[356814059,1743240550356,-500.0,0.0002195,2]
[356814060,1743240550378,-345.30361553,0.0002195,2]
[356814061,1743240550398,-154.49998126,0.0002195,2]
[356814062,1743240550421,-439.22712738,0.0002195,2]
[356814063,1743240550442,-500.0,0.0002195,2]
[356814064,1743240550463,-269.46126553,0.0002195,2]
[356814065,1743240550484,-160.7832524,0.0002195,2]
[356814066,1743240550505,-156.15306095,0.0002195,2]
[356814067,1743240550525,-163.74613947,0.0002195,2]
[356814068,1743240550545,-514.64529008,0.0002195,2]
[356814069,1743240550565,-500.0,0.0002195,2]
[356814070,1743240550586,-502.64498138,0.0002195,2]
[356814071,1743240550606,-500.0,0.0002195,2]
[356814072,1743240550627,-502.3736784,0.0002195,2]
[356814073,1743240550648,-504.66760316,0.0002195,2]
[356814074,1743240550668,-500.0,0.0002195,2]
[356814075,1743240550688,-500.0,0.0002195,2]
[356814076,1743240550708,-500.0,0.0002195,2]
[356814077,1743240550729,-420.0,0.00021989,2]
[356814078,1743240550749,-153.08170836,0.00022081,2]
[356814079,1743240550770,-506.83361589,0.00022087,2]
[356814080,1743240550790,-1883.1047117,0.00022181,2]
[356814081,1743240550812,-198.92664809,0.00022181,2]
[356814082,1743240550832,-438.10917227,0.00022189,2]
[356814083,1743240550852,-504.97646592,0.0002225,2]
[356814084,1743240550873,-500.0,0.0002225,2]
[356814085,1743240550893,-504.53610861,0.0002225,2]
[356814086,1743240550913,-170.3885182,0.0002225,2]
[356814087,1743240550933,-500.0,0.0002225,2]
[356814088,1743240550953,-157.886408,0.0002225,2]
[356814089,1743240550974,-500.0,0.0002225,2]
[356814090,1743240550994,-500.0,0.0002225,2]
[356814091,1743240551013,-500.0,0.0002225,2]
[356814092,1743240551033,-500.0,0.0002225,2]
[356814093,1743240551054,-501.04421222,0.0002225,2]
[356814094,1743240551074,-211.36399209,0.0002225,2]
[356814095,1743240551094,-206.64056012,0.0002225,2]
[356814096,1743240551114,-505.28947224,0.0002225,2]
[356814097,1743240551134,-501.92330891,0.0002225,2]
[356814098,1743240551155,-500.0,0.0002225,2]
[356814099,1743240551176,-500.0,0.0002225,2]
[356814100,1743240551196,-166.73129913,0.0002225,2]
[356814101,1743240551217,-500.0,0.0002225,2]
[356814102,1743240551237,-500.0,0.0002225,2]
[356814103,1743240551257,-292.71882054,0.0002225,2]
[356814104,1743240551277,-177.23302175,0.0002225,2]
[356814105,1743240551298,-280.13253996,0.0002225,2]
[356814106,1743240551732,171.3613985,0.00019532,2]
[356814107,1743240554416,151.0,0.00020939,2]
[356814108,1743240555065,151.0,0.00020939,2]
[356814109,1743240555861,151.02921589,0.00020939,2]
[356814110,1743240555898,2621.19076758,0.00020199,2]
[356814111,1743240555925,2621.19076758,0.00020199,2]
[356814112,1743240555952,2621.19076758,0.00020199,2]
[356814113,1743240555981,2621.19076758,0.00020199,2]
[356814114,1743240556008,2621.19076758,0.00020199,2]
[356814115,1743240556034,2621.19076758,0.00020199,2]
[356814124,1743240585170,582.48683709,0.00020199,2]
[356814128,1743240607766,622.2,0.00021551,2]
[356814129,1743240608401,645.2214,0.00021606,2]
[356814130,1743240609116,669.0945918,0.00021661,2]
[356814132,1743240609755,693.8510917,0.00021716,2]
[356814133,1743240610424,719.52358209,0.00021771,2]
[356814134,1743240610504,7609.0,0.00014,2]
[356814135,1743240611169,967.75040927,0.00021826,2]
[356814179,1743240632061,-250.0,0.00022306,2]
[356814181,1743240632071,-427.05838833,0.0002238,2]
[356814182,1743240632081,-501.94916836,0.0002238,2]
[356814184,1743240632091,-506.83361589,0.00022426,2]
[356814186,1743240632101,-250.0,0.00022551,2]
[356814188,1743240632110,-300.0,0.00022764,2]
[356814190,1743240632120,-506.83361589,0.00022765,2]
[356814191,1743240632130,-1458.83435025,0.00022765,2]
[356814193,1743240632139,-8329.8277543,0.00022823,3]
[356814194,1743240632149,-654.93041449,0.00022823,2]
[356814204,1743240638263,-337.90960781,0.00022822,2]
[356814205,1743240638279,-162.09039219,0.00022822,2]
[356814206,1743240638288,-500.0,0.00022822,2]
[356814207,1743240638297,-306.81266949,0.00022822,2]
[356814208,1743240638306,-500.0,0.00022822,2]
[356814209,1743240638315,-184.22413723,0.00022822,2]
[356814210,1743240638324,-500.0,0.00022822,2]
[356814211,1743240638334,-133.16953404,0.00022822,2]
[356814212,1743240638345,-366.83046596,0.00022822,2]
[356814213,1743240638354,-500.0,0.00022822,2]
[356814214,1743240638363,-500.0,0.00022822,2]
[356814215,1743240638373,-500.0,0.00022822,2]
[356814216,1743240638382,-500.0,0.00022822,2]
[356814217,1743240638391,-500.0,0.00022822,2]
[356814218,1743240638400,-500.0,0.00022822,2]
[356814219,1743240638410,-500.0,0.00022822,2]
[356814220,1743240638419,-378.89126755,0.00022822,2]
[356814239,1743240640270,-121.10873245,0.00022822,2]
[356814240,1743240640279,-340.18752096,0.00022822,2]
[356814250,1743240643068,-159.81247904,0.00022822,2]
[356814251,1743240643077,-500.0,0.00022822,2]
[356814252,1743240643087,-471.54634997,0.00022822,2]
[356814253,1743240643096,-500.0,0.00022822,2]
[356814254,1743240643105,-500.0,0.00022822,2]
[356814255,1743240643115,-1868.64116849,0.00022823,2]
[356814256,1743240643131,-2476.42841702,0.00022823,2]
[356814257,1743240643140,-500.0,0.00022823,2]
[356814258,1743240643149,-370000.0,0.00022823,2]
[356814259,1743240643159,-500.0,0.000229,2]
[356814260,1743240643168,-500.0,0.000229,2]
[356814261,1743240643177,-502.68503382,0.000229,2]
[356814262,1743240643186,-500.0,0.000229,2]
[356814263,1743240643196,-418.66406265,0.00023,3]
[356814264,1743240643205,-160.0,0.00023,3]
[356814265,1743240643214,-211.66013452,0.00023789,2]
[356814266,1743240643224,-196.644,0.0002389,5]
[356814267,1743240643233,-1387.6744882,0.00023917,2]
[356814268,1743240643242,-150.0,0.00024,2]
[356814269,1743240643251,-2278.51461381,0.00024,5]
[356814270,1743240643260,-2278.51461371,0.00024,5]
[356814272,1743240643269,-2278.51461371,0.00024,5]
[356814274,1743240643278,-2278.51461371,0.00024,5]
[356814276,1743240643287,-2278.51461371,0.00024,5]
[356814277,1743240643296,-2278.51461371,0.00024,5]
[356814278,1743240643305,-2278.51461371,0.00024,5]
[356814279,1743240643315,-2278.51461371,0.00024,5]
[356814280,1743240643324,-2278.51461371,0.00024,5]
[356814281,1743240643333,-237.4164254,0.00024,2]
[356814282,1743240643342,-2278.51461371,0.00024003,5]
[356814283,1743240643352,-401.0,0.00024024,2]
[356814284,1743240643360,-542.0,0.00024024,2]
[356814285,1743240643369,-150.0,0.00024024,2]
[356814286,1743240643379,-600.0,0.00024088,2]
[356814287,1743240643388,-1915.0,0.00024307,2]
[356814288,1743240643397,-2261.0,0.00024307,2]
[356814289,1743240643406,-465.04345802,0.0002431,2]
[356814290,1743240643415,-600.0,0.00024339,2]
[356814291,1743240643426,-2278.51461371,0.00024348,5]
[356814292,1743240643437,-150.0,0.00024359,2]
[356814293,1743240643447,-150.0,0.00024359,2]
[356814294,1743240643456,-150.0,0.00024359,2]
[356814295,1743240643465,-150.0,0.00024359,2]
[356814296,1743240643474,-150.0,0.00024359,2]
[356814297,1743240643485,-1934.29724213,0.00024499,3]
[356814298,1743240643494,-12458.93820146,0.000245,3]
[356814299,1743240643503,-266.1,0.000245,2]
[356814300,1743240643513,-148818.58842978,0.000245,2]
[356814301,1743240643522,-151.0,0.000245,7]
[356814302,1743240643531,-263.763241,0.000245,7]
[356814303,1743240643540,-153.875675,0.000245,7]
[356814304,1743240643550,-151.0,0.000245,7]
[356814305,1743240643559,-151.0,0.000245,7]
[356814306,1743240643568,-151.0,0.000245,7]
[356814307,1743240643578,-151.0,0.000245,7]
[356814308,1743240643587,-151.0,0.000245,7]
[356814309,1743240643596,-151.0,0.000245,7]
[356814310,1743240643605,-151.0,0.000245,7]
[356814311,1743240643614,-151.0,0.000245,7]
[356814312,1743240643789,-151.0,0.000245,7]
[356814313,1743240643811,-151.0,0.000245,7]
[356814314,1743240643821,-151.0,0.000245,7]
[356814315,1743240643831,-151.0,0.000245,7]
[356814316,1743240643840,-151.0,0.000245,7]
[356814317,1743240643849,-732.093408,0.000245,7]
[356814318,1743240643857,-152.690053,0.000245,7]
[356814319,1743240643866,-732.093408,0.000245,7]
[356814320,1743240643876,-151.384839,0.000245,7]
[356814321,1743240643885,-151.0,0.000245,7]
[356814322,1743240643894,-1017.076593,0.000245,2]
[356814323,1743240643904,-1017.076593,0.000245,2]
[356814324,1743240643913,-867.908654,0.000245,7]
[356814325,1743240643923,-867.908654,0.000245,7]
[356814326,1743240643932,-255.24176269,0.00024508,2]
[356814327,1743240643941,-160.0,0.00024508,2]
[356814328,1743240643951,-160.0,0.00024509,2]
[356814329,1743240643961,-603.85347527,0.0002459,2]
[356814330,1743240643970,-500.0,0.00024657,2]
[356814331,1743240643979,-579.38706054,0.00024657,2]
[356814332,1743240643988,-500.0,0.00024657,2]
[356814333,1743240643997,-12458.93820146,0.00024657,7]
[356814334,1743240644006,-500.0,0.00024657,2]
[356814335,1743240644015,-244.84883947,0.00024657,2]
[356814336,1743240644024,-500.0,0.00024657,2]
[356814337,1743240644034,-500.0,0.00024657,2]
[356814338,1743240644043,-500.0,0.00024657,2]
[356814339,1743240644053,-500.0,0.00024657,2]
[356814340,1743240644062,-543.56146338,0.00024657,2]
[356814341,1743240644071,-500.0,0.00024657,2]
[356814342,1743240644080,-500.0,0.00024657,2]
[356814343,1743240644090,-500.82510398,0.00024657,2]
[356814344,1743240644100,-500.86096408,0.00024657,2]
[356814345,1743240644109,-500.37678433,0.00024657,2]
[356814346,1743240644118,-500.0,0.00024657,2]
[356814347,1743240644127,-512.82494649,0.00024657,2]
[356814348,1743240644137,-500.67094211,0.00024657,2]
[356814349,1743240644146,-500.0,0.00024657,2]
[356814350,1743240644155,-500.0,0.00024657,2]
[356814351,1743240644164,-500.95718815,0.00024657,2]
[356814352,1743240644175,-500.0,0.00024657,2]
[356814353,1743240644184,-500.0,0.00024657,2]
[356814354,1743240644193,-500.0,0.00024657,2]
[356814355,1743240644203,-500.0,0.00024657,2]
[356814356,1743240644212,-500.0,0.00024657,2]
[356814357,1743240644221,-500.0,0.00024657,2]
[356814358,1743240644231,-500.0,0.00024657,2]
[356814359,1743240644240,-500.0,0.00024657,2]
[356814360,1743240644249,-500.0,0.00024657,2]
[356814361,1743240644259,-500.0,0.00024657,2]
[356814362,1743240644268,-500.0,0.00024657,2]
[356814363,1743240644279,-500.0,0.00024657,2]
[356814364,1743240644288,-1000.0,0.00024657,2]
[356814365,1743240644298,-500.0,0.00024657,2]
[356814366,1743240644307,-500.0,0.00024657,2]
[356814367,1743240644316,-500.0,0.00024657,2]
[356814368,1743240644326,-500.0,0.00024657,2]
[356814369,1743240644335,-500.0,0.00024657,2]
[356814370,1743240644344,-500.0,0.00024657,2]
[356814371,1743240644353,-500.0,0.00024657,2]
[356814372,1743240644362,-500.0,0.00024657,2]
[356814373,1743240644372,-500.0,0.00024657,2]
[356814374,1743240644381,-500.0,0.00024657,2]
[356814375,1743240644390,-500.0,0.00024657,2]
[356814376,1743240644399,-500.0,0.00024657,2]
[356814377,1743240644408,-592.37,0.00024657,2]
[356814378,1743240644417,-283.809858,0.00024657,2]
[356814418,1743240777694,180.010983,0.00013699,2]
[356814433,1743241628220,-500.0,0.0002,7]
[356814434,1743241628242,-984.992189,0.00020929,2]
[356814435,1743241628265,-300.0,0.00020933,2]
[356814436,1743241628286,-8789.58187663,0.00020934,2]
[356814437,1743241634340,-352.92204875,0.00020934,2]
[356814438,1743241635193,-707.01838402,0.00020934,2]
[356814439,1743241635213,-250.0,0.00021238,2]
[356814440,1743241635234,-1149.84508133,0.00021519,2]
[356814441,1743241635254,-364.97356595,0.0002162,2]
[356814442,1743241635293,-931.23051819,0.0002162,2]
[356814447,1743241746197,-861.22230054,0.00020199,2]
[356814448,1743241746220,-300.0,0.00021072,2]
[356814449,1743241746244,-63.19807866,0.00021073,2]
[356814451,1743241749225,-436.80192134,0.00021073,2]
[356814452,1743241749246,-279.47979033,0.00021073,2]
[356814453,1743241760109,-220.52020967,0.00021073,2]
[356814454,1743241760130,-204.51769839,0.00021073,2]
[356814455,1743241760155,-500.0,0.00021073,2]
[356814456,1743241760179,-225.91079889,0.00021073,2]
[356814457,1743241760202,-500.0,0.00021073,2]
[356814458,1743241760226,-500.0,0.00021073,2]
[356814459,1743241760248,-500.0,0.00021073,2]
[356814460,1743241760273,-500.0,0.00021073,2]
[356814461,1743241760294,-186.79708811,0.00021073,2]
[356814462,1743241760316,-500.0,0.00021073,2]
[356814463,1743241760338,-500.0,0.00021073,2]
[356814464,1743241760362,-500.0,0.00021073,2]
[356814465,1743241760384,-500.0,0.00021073,2]
[356814466,1743241760407,-500.0,0.00021073,2]
[356814467,1743241760430,-169.29603276,0.00021073,2]
[356814468,1743241760453,-500.0,0.00021073,2]
[356814469,1743241760476,-500.0,0.00021073,2]
[356814470,1743241760498,-500.0,0.00021073,2]
[356814471,1743241760523,-500.0,0.00021073,2]
[356814472,1743241760547,-500.0,0.00021073,2]
[356814473,1743241760571,-500.0,0.00021073,2]
[356814474,1743241760593,-500.0,0.00021073,2]
[356814475,1743241760616,-500.0,0.00021073,2]
[356814476,1743241760638,-500.0,0.00021073,2]
[356814477,1743241760662,-500.0,0.00021073,2]
[356814478,1743241760687,-500.0,0.00021073,2]
[356814479,1743241760709,-500.0,0.00021073,2]
[356814480,1743241760732,-237.80351949,0.00021073,2]
[356814481,1743241760755,-500.0,0.00021073,2]
[356814482,1743241760778,-500.0,0.00021073,2]
[356814483,1743241760804,-500.0,0.00021073,2]
[356814484,1743241760827,-500.0,0.00021073,2]
[356814485,1743241760853,-500.0,0.00021073,2]
[356814486,1743241760879,-500.0,0.00021073,2]
[356814487,1743241760903,-500.0,0.00021073,2]
[356814488,1743241760927,-500.0,0.00021073,2]
[356814489,1743241760949,-500.0,0.00021073,2]
[356814490,1743241760972,-500.0,0.00021073,2]
[356814491,1743241760996,-500.0,0.00021073,2]
[356814492,1743241761020,-500.0,0.00021073,2]
[356814493,1743241761044,-500.0,0.00021073,2]
[356814494,1743241761065,-500.0,0.00021073,2]
[356814495,1743241761088,-500.0,0.00021073,2]
[356814496,1743241761111,-500.0,0.00021073,2]
[356814497,1743241761133,-500.0,0.00021073,2]
[356814498,1743241761154,-500.0,0.00021073,2]
[356814499,1743241761176,-500.0,0.00021073,2]
[356814500,1743241761199,-500.0,0.00021073,2]
[356814501,1743241761221,-500.0,0.00021073,2]
[356814502,1743241761249,-500.0,0.00021073,2]
[356814503,1743241761272,-500.0,0.00021073,2]
[356814504,1743241761294,-500.0,0.00021073,2]
[356814505,1743241761317,-500.0,0.00021073,2]
[356814506,1743241761338,-500.0,0.00021073,2]
[356814507,1743241761363,-500.0,0.00021073,2]
[356814508,1743241761385,-500.0,0.00021073,2]
[356814509,1743241761408,-500.0,0.00021073,2]
[356814510,1743241761433,-500.0,0.00021073,2]
[356814511,1743241761455,-500.0,0.00021073,2]
[356814512,1743241761480,-500.0,0.00021073,2]
[356814513,1743241761504,-500.0,0.00021073,2]
[356814514,1743241761528,-500.0,0.00021073,2]
[356814515,1743241761554,-500.0,0.00021073,2]
[356814516,1743241761579,-500.0,0.00021073,2]
[356814517,1743241761605,-1580.5123606,0.00021073,2]
[356814518,1743241761630,-1580.5123606,0.00021073,2]
[356814519,1743241761655,-1580.5123606,0.00021073,2]
[356814520,1743241761686,-1580.5123606,0.00021073,2]
[356814521,1743241761715,-1580.5123606,0.00021073,2]
[356814522,1743241761741,-1580.5123606,0.00021073,2]
[356814523,1743241761766,-1580.5123606,0.00021073,2]
[356814524,1743241761793,-1580.5123606,0.00021073,2]
[356814525,1743241761817,-1580.5123606,0.00021073,2]
[356814526,1743241761840,-1580.5123606,0.00021073,2]
[356814527,1743241761865,-1580.5123606,0.00021073,2]
[356814528,1743241761893,-1580.5123606,0.00021073,2]
[356814529,1743241761918,-1580.5123606,0.00021073,2]
[356814530,1743241761942,-1580.5123606,0.00021073,2]
[356814531,1743241761967,-1580.5123606,0.00021073,2]
[356814532,1743241761990,-1580.5123606,0.00021073,2]
[356814533,1743241762013,-1580.5123606,0.00021073,2]
[356814534,1743241762037,-1580.5123606,0.00021073,2]
[356814535,1743241762060,-1580.5123606,0.00021073,2]
[356814536,1743241762084,-1580.5123606,0.00021073,2]
[356814537,1743241762108,-1580.5123606,0.00021073,2]
[356814538,1743241762132,-1580.5123606,0.00021073,2]
[356814539,1743241762156,-1580.5123606,0.00021073,2]
[356814540,1743241762181,-1580.5123606,0.00021073,2]
[356814541,1743241762205,-1580.5123606,0.00021073,2]
[356814542,1743241762230,-1580.5123606,0.00021073,2]
[356814543,1743241762256,-1580.5123606,0.00021073,2]
[356814544,1743241762282,-1580.5123606,0.00021073,2]
[356814545,1743241762306,-1580.5123606,0.00021073,2]
[356814546,1743241762329,-1580.5123606,0.00021073,2]
[356814547,1743241762352,-1580.5123606,0.00021073,2]
[356814548,1743241762377,-1580.5123606,0.00021073,2]
[356814549,1743241762401,-1580.5123606,0.00021073,2]
[356814550,1743241762429,-1580.5123606,0.00021073,2]
[356814551,1743241762453,-1580.5123606,0.00021073,2]
[356814552,1743241762477,-1580.5123606,0.00021073,2]
[356814553,1743241762502,-1580.5123606,0.00021073,2]
[356814554,1743241762526,-1580.5123606,0.00021073,2]
[356814555,1743241762550,-1580.5123606,0.00021073,2]
[356814556,1743241762574,-1580.5123606,0.00021073,2]
[356814557,1743241762598,-1580.5123606,0.00021073,2]
[356814558,1743241762620,-1580.5123606,0.00021073,2]
[356814559,1743241762643,-1580.5123606,0.00021073,2]
[356814560,1743241762669,-1580.5123606,0.00021073,2]
[356814561,1743241762692,-1605.59985838,0.00021073,2]
[356814562,1743241762715,-1605.59985838,0.00021073,2]
[356814563,1743241762738,-1605.59985838,0.00021073,2]
[356814564,1743241762761,-1605.59985838,0.00021073,2]
[356814565,1743241762784,-1605.59985838,0.00021073,2]
[356814566,1743241762811,-1605.59985838,0.00021073,2]
[356814567,1743241762832,-52865.21310465,0.00021074,2]
[356814603,1743241832780,-905.49373929,0.00021041,2]
[356814604,1743241832985,-8504.84015058,0.00021041,2]
[356814605,1743241833027,-451.79522765,0.00021041,2]
[356814606,1743241833038,-15037.87088248,0.00021041,2]
[356814607,1743241833048,-300.0,0.00021073,2]
[356814608,1743241833057,-8962.76880895,0.00021074,2]
[356814609,1743241833067,-3493.98645556,0.0002162,2]
[356814655,1743241838242,-3009.8855353,0.0002162,2]
[356814657,1743241838255,-370.50891054,0.0002162,2]
[356814659,1743241838266,-694.2,0.0002162,2]
[356814678,1743241839995,-17.94088378,0.0002162,2]
[356814691,1743241840611,-1117.27413068,0.0002162,2]
[356814692,1743241840621,-217.28183586,0.00021887,2]
[356814693,1743241840630,-500.0,0.0002195,2]
[356814694,1743241840639,-500.0,0.0002195,2]
[356814695,1743241840648,-356.55225608,0.0002195,2]
[356814696,1743241840670,-143.44774392,0.0002195,2]
[356814697,1743241840680,-500.0,0.0002195,2]
[356814698,1743241840689,-291.8658686,0.00021975,2]
[356814699,1743241840699,-3476.46872524,0.0002199,2]
[356814734,1743241844510,-3293.21205437,0.0002199,2]
[356814735,1743241844520,-217.28183582,0.00022121,2]
[356814736,1743241844530,-2165.1703944,0.0002222,2]
[356814737,1743241844540,-500.0,0.0002232,2]
[356814738,1743241844550,-500.0,0.0002232,2]
[356814739,1743241844559,-500.0,0.0002232,2]
[356814740,1743241844569,-500.0,0.0002232,2]
[356814741,1743241844579,-217.28183582,0.00022354,2]
[356814742,1743241844588,-500.0,0.000224,2]
[356814743,1743241844597,-212.3778216,0.000224,2]
[356814744,1743241844606,-998.10360315,0.00022542,2]
[356814745,1743241844616,-5345.21697808,0.00022544,2]
[356814746,1743241844625,-230.13049514,0.00022587,2]
[356814747,1743241844634,-500.0,0.00022587,2]
[356814749,1743241844644,-217.52367471,0.00022587,2]
[356814751,1743241844653,-613.73463467,0.00022587,2]
[356814753,1743241844663,-500.0,0.00022587,2]
[356814755,1743241844673,-217.28183582,0.00022588,2]
[356814757,1743241844683,-5000.0,0.00022665,2]
[356814759,1743241844692,-1745.59553845,0.000227,2]
[356814761,1743241844701,-13284.12043952,0.00022723,2]
[356814765,1743241844739,-356715.87956048,0.00022723,2]
[356814767,1743241844749,-3592.5,0.000228,7]
[356814769,1743241844759,-217.28183582,0.00022821,2]
[356814771,1743241844768,-420.0,0.00022921,2]
[356814772,1743241844778,-196.64514568,0.0002346,3]
[356814773,1743241844787,-1566.03254949,0.000239,5]
[356814774,1743241844796,-1566.03254941,0.000239,5]
[356814775,1743241844806,-1123.3213493,0.00023917,2]
[356814777,1743241844818,-1566.03254941,0.00024072,5]
[356814778,1743241844828,-150.0,0.00024252,2]
[356814780,1743241844838,-160.0,0.00024263,2]
[356814782,1743241844849,-150.0,0.00024307,2]
[356814784,1743241844859,-542.0,0.00024307,2]
[356814786,1743241844869,-1915.0,0.00024307,2]
[356814788,1743241844878,-2261.0,0.00024307,2]
[356814790,1743241844887,-150.0,0.00024307,2]
[356814792,1743241844898,-401.0,0.00024307,2]
[356814793,1743241844908,-150.0,0.00024307,2]
[356814794,1743241844917,-150.0,0.00024307,2]
[356814795,1743241844926,-151.0,0.0002431,2]
[356814796,1743241844936,-2165.17039439,0.00024317,2]
[356814797,1743241844944,-418.66406265,0.00024347,2]
[356814798,1743241844953,-160.0,0.00024347,2]
[356814799,1743241844963,-7675.539252,0.000245,21]
[356814800,1743241844973,-150.0,0.00024505,2]
[356814801,1743241844982,-500.0,0.00024657,2]
[356814802,1743241844992,-500.0,0.00024657,2]
[356814803,1743241845001,-500.0,0.00024657,2]
[356814804,1743241845010,-500.0,0.00024657,2]
[356814805,1743241845019,-500.0,0.00024657,2]
[356814806,1743241845028,-500.0,0.00024657,2]
[356814807,1743241845037,-500.0,0.00024657,2]
[356814808,1743241845047,-500.0,0.00024657,2]
[356814809,1743241845056,-500.0,0.00024657,2]
[356814810,1743241845065,-500.0,0.00024657,2]
[356814811,1743241845075,-334.80987711,0.00024657,2]
[356814812,1743241845084,-500.0,0.00024657,2]
[356814813,1743241845093,-313.03010145,0.00024657,2]
[356814814,1743241845103,-500.0,0.00024657,2]
[356814815,1743241845113,-500.0,0.00024657,2]
[356814816,1743241845122,-500.0,0.00024657,2]
[356814817,1743241845132,-283.39138059,0.00024657,2]
[356814818,1743241845141,-500.0,0.00024657,2]
[356814819,1743241845151,-500.0,0.00024657,2]
[356814820,1743241845160,-500.0,0.00024657,2]
[356814821,1743241845169,-500.0,0.00024657,2]
[356814822,1743241845178,-355.10400213,0.00024657,2]
[356814823,1743241845188,-580.67,0.00024657,2]
[356814824,1743241845197,-500.0,0.00024657,2]
[356814825,1743241845206,-500.0,0.00024657,2]
[356814826,1743241845216,-500.0,0.00024657,2]
[356814827,1743241845226,-500.0,0.00024657,2]
[356814828,1743241845235,-500.0,0.00024657,2]